[Event "Titled Tuesday Blitz November 15 Early 2022"]
[White "Ghosh, Chanchal Kumer"]
[Black "Gjestemoen-VonHirsch, Andre"]
[WhiteFideId "10201858"]
[BlackFideId "1539531"]
[WhiteElo "2058"]
[BlackElo "2198"]
[Result "0-1"]
[Round "07"]
[TimeControl "180+1"]
[Date "2022.11.16"]
[WhiteClock "0:00:10"]
[BlackClock "0:00:06"]

1. e4 {[%clk 0:02:56]}  g6 {[%clk 0:02:59]} 2. Nf3 {[%clk 0:02:56]}  Bg7 {[%clk 0:02:51]} 3. d4 {[%clk 0:02:56]}  c5 {[%clk 0:02:51]} 4. c3 {[%clk 0:02:56]}  Nf6 {[%clk 0:02:40]} 5. Bd3 {[%clk 0:02:53]}  d5 {[%clk 0:02:37]} 6. Nbd2 {[%clk 0:02:50]}  dxe4 {[%clk 0:02:27]} 7. Nxe4 {[%clk 0:02:50]}  Nc6 {[%clk 0:02:24]} 8. O-O {[%clk 0:02:48]}  Bg4 {[%clk 0:02:11]} 9. Nxc5 {[%clk 0:02:45]}  b6 {[%clk 0:01:50]} 10. Ne4 {[%clk 0:02:36]}  O-O {[%clk 0:01:50]} 11. Nxf6+ {[%clk 0:02:30]}  Bxf6 {[%clk 0:01:51]} 12. Be4 {[%clk 0:02:30]}  Qd7 {[%clk 0:01:49]} 13. h3 {[%clk 0:02:23]}  Bf5 {[%clk 0:01:36]} 14. Qe2 {[%clk 0:02:14]}  Rad8 {[%clk 0:01:30]} 15. Re1 {[%clk 0:02:04]}  Rfe8 {[%clk 0:01:24]} 16. Bg5 {[%clk 0:02:02]}  Bxg5 {[%clk 0:01:09]} 17. Nxg5 {[%clk 0:02:01]}  e5 {[%clk 0:01:09]} 18. Bxc6 {[%clk 0:01:39]}  Qxc6 {[%clk 0:01:10]} 19. dxe5 {[%clk 0:01:38]}  Rd5 {[%clk 0:00:48]} 20. Qf3 {[%clk 0:01:05]}  h6 {[%clk 0:00:15]} 21. Nxf7 {[%clk 0:00:57]}  Kxf7 {[%clk 0:00:12]} 22. g4 {[%clk 0:00:55]}  Qe6 {[%clk 0:00:10]} 23. gxf5 {[%clk 0:00:55]}  gxf5 {[%clk 0:00:11]} 24. Qh5+ {[%clk 0:00:54]}  Ke7 {[%clk 0:00:08]} 25. f4 {[%clk 0:00:50]}  Rg8+ {[%clk 0:00:07]} 26. Kh1 {[%clk 0:00:43]}  Qc6 {[%clk 0:00:06]} 27. Qf3 {[%clk 0:00:42]}  Rd3 {[%clk 0:00:04]} 28. Rf1 {[%clk 0:00:08]}  Rxf3 {[%clk 0:00:04]} 29. Rxf3 {[%clk 0:00:09]}  Qxf3+ {[%clk 0:00:05]} 30. Kh2 {[%clk 0:00:10]}  Qg2# {[%clk 0:00:06]} 0-1


[Site "https://www.chess.com"]

[Event "Titled Tuesday Blitz November 15 Early 2022"]
[White "Golubev, Mikhail"]
[Black "Vifleemskaia, Svetlana"]
[WhiteFideId "14100983"]
[BlackFideId "4129490"]
[WhiteElo "2374"]
[BlackElo "1929"]
[Result "0-1"]
[Round "07"]
[TimeControl "180+1"]
[Date "2022.11.16"]
[WhiteClock "0:00:01"]
[BlackClock "0:00:05"]

1. e4 {[%clk 0:03:00]}  e5 {[%clk 0:02:58]} 2. d4 {[%clk 0:03:00]}  exd4 {[%clk 0:02:58]} 3. Qxd4 {[%clk 0:03:01]}  Nc6 {[%clk 0:02:57]} 4. Qd3 {[%clk 0:03:01]}  Nf6 {[%clk 0:02:57]} 5. Nc3 {[%clk 0:03:00]}  Bb4 {[%clk 0:02:44]} 6. Bd2 {[%clk 0:02:59]}  d6 {[%clk 0:02:25]} 7. O-O-O {[%clk 0:02:57]}  O-O {[%clk 0:02:25]} 8. h3 {[%clk 0:02:56]}  a6 {[%clk 0:02:21]} 9. f4 {[%clk 0:02:35]}  b5 {[%clk 0:02:16]} 10. g4 {[%clk 0:02:24]}  Re8 {[%clk 0:02:15]} 11. Bg2 {[%clk 0:02:21]}  Bb7 {[%clk 0:02:08]} 12. g5 {[%clk 0:02:20]}  Nd7 {[%clk 0:02:01]} 13. Nge2 {[%clk 0:02:19]}  Nc5 {[%clk 0:01:58]} 14. Qg3 {[%clk 0:02:05]}  Na5 {[%clk 0:01:49]} 15. a3 {[%clk 0:01:50]}  Bxc3 {[%clk 0:01:45]} 16. Bxc3 {[%clk 0:01:36]}  Nc4 {[%clk 0:01:40]} 17. Rhe1 {[%clk 0:00:42]}  Nxe4 {[%clk 0:01:34]} 18. Bxe4 {[%clk 0:00:41]}  Rxe4 {[%clk 0:01:30]} 19. Nd4 {[%clk 0:00:32]}  Qd7 {[%clk 0:01:23]} 20. Rxe4 {[%clk 0:00:26]}  Bxe4 {[%clk 0:01:24]} 21. Re1 {[%clk 0:00:25]}  Re8 {[%clk 0:01:17]} 22. b3 {[%clk 0:00:13]}  Nb6 {[%clk 0:01:04]} 23. Kb2 {[%clk 0:00:07]}  c5 {[%clk 0:01:00]} 24. Nf3 {[%clk 0:00:07]}  d5 {[%clk 0:00:53]} 25. Ne5 {[%clk 0:00:06]}  Qf5 {[%clk 0:00:51]} 26. Ng4 {[%clk 0:00:06]}  d4 {[%clk 0:00:44]} 27. Nf6+ {[%clk 0:00:06]}  gxf6 {[%clk 0:00:38]} 28. gxf6+ {[%clk 0:00:06]}  Qg6 {[%clk 0:00:38]} 29. Qf2 {[%clk 0:00:04]}  dxc3+ {[%clk 0:00:37]} 30. Ka2 {[%clk 0:00:04]}  Qxf6 {[%clk 0:00:27]} 31. Qxc5 {[%clk 0:00:04]}  Nd5 {[%clk 0:00:22]} 32. Rg1+ {[%clk 0:00:04]}  Kh8 {[%clk 0:00:19]} 33. h4 {[%clk 0:00:04]}  Qxf4 {[%clk 0:00:14]} 34. Qd4+ {[%clk 0:00:03]}  Qe5 {[%clk 0:00:12]} 35. Qf2 {[%clk 0:00:01]}  Bg6 {[%clk 0:00:08]} 36. Rd1 {[%clk 0:00:01]}  Ne3 {[%clk 0:00:07]} 37. Re1 {[%clk 0:00:01]}  Qe4 {[%clk 0:00:05]} 0-1


[Site "https://www.chess.com"]

[Event "Titled Tuesday Blitz November 15 Early 2022"]
[White "Gorodetzky, David"]
[Black "Fedoseev, Vladimir"]
[WhiteFideId "2813416"]
[BlackFideId "24130737"]
[WhiteElo "2497"]
[BlackElo "2726"]
[Result "0-1"]
[Round "07"]
[TimeControl "180+1"]
[Date "2022.11.15"]
[WhiteClock "0:00:02"]
[BlackClock "0:01:25"]

1. c4 {[%clk 0:02:47]}  e5 {[%clk 0:02:55]} 2. Nc3 {[%clk 0:02:47]}  Nc6 {[%clk 0:02:55]} 3. Nf3 {[%clk 0:02:47]}  f5 {[%clk 0:02:53]} 4. g3 {[%clk 0:02:46]}  Nf6 {[%clk 0:02:49]} 5. Bg2 {[%clk 0:02:45]}  Bb4 {[%clk 0:02:48]} 6. Nd5 {[%clk 0:02:41]}  a5 {[%clk 0:02:48]} 7. O-O {[%clk 0:02:38]}  O-O {[%clk 0:02:46]} 8. d3 {[%clk 0:02:12]}  Be7 {[%clk 0:02:43]} 9. d4 {[%clk 0:01:53]}  e4 {[%clk 0:02:40]} 10. Nxe7+ {[%clk 0:01:47]}  Qxe7 {[%clk 0:02:36]} 11. Nh4 {[%clk 0:01:44]}  d5 {[%clk 0:02:36]} 12. Bh3 {[%clk 0:01:37]}  dxc4 {[%clk 0:02:20]} 13. Bxf5 {[%clk 0:01:28]}  Bxf5 {[%clk 0:02:18]} 14. Nxf5 {[%clk 0:01:28]}  Qe6 {[%clk 0:02:17]} 15. Nh4 {[%clk 0:01:11]}  Rad8 {[%clk 0:02:17]} 16. Be3 {[%clk 0:01:02]}  Qh3 {[%clk 0:02:13]} 17. f3 {[%clk 0:00:51]}  Nd5 {[%clk 0:02:10]} 18. Bf2 {[%clk 0:00:48]}  e3 {[%clk 0:02:06]} 19. Be1 {[%clk 0:00:49]}  Rd6 {[%clk 0:01:54]} 20. f4 {[%clk 0:00:38]}  g5 {[%clk 0:01:52]} 21. Nf3 {[%clk 0:00:13]}  Rh6 {[%clk 0:01:44]} 22. Qc2 {[%clk 0:00:10]}  Rxf4 {[%clk 0:01:42]} 23. Rd1 {[%clk 0:00:04]}  b5 {[%clk 0:01:33]} 24. a4 {[%clk 0:00:04]}  g4 {[%clk 0:01:27]} 25. gxf4 {[%clk 0:00:02]}  Nxf4 {[%clk 0:01:25]} 0-1


[Site "https://www.chess.com"]

[Event "Titled Tuesday Blitz November 15 Early 2022"]
[White "Grapsa, Georgia"]
[Black "Gerbelli Neto, Eduardo"]
[WhiteFideId "4206436"]
[BlackFideId "2103281"]
[WhiteElo "1877"]
[BlackElo "2178"]
[Result "1-0"]
[Round "07"]
[TimeControl "180+1"]
[Date "2022.11.16"]
[WhiteClock "0:00:07"]
[BlackClock "0:00:01"]

1. e4 {[%clk 0:02:39]}  e5 {[%clk 0:02:59]} 2. Nf3 {[%clk 0:02:39]}  Nc6 {[%clk 0:02:58]} 3. Bb5 {[%clk 0:02:39]}  a6 {[%clk 0:02:58]} 4. Ba4 {[%clk 0:02:36]}  d6 {[%clk 0:02:59]} 5. Bxc6+ {[%clk 0:02:18]}  bxc6 {[%clk 0:02:59]} 6. d3 {[%clk 0:02:17]}  f5 {[%clk 0:02:53]} 7. Nc3 {[%clk 0:02:15]}  Nf6 {[%clk 0:02:52]} 8. h3 {[%clk 0:02:14]}  Be7 {[%clk 0:02:52]} 9. Bg5 {[%clk 0:02:13]}  O-O {[%clk 0:02:53]} 10. Qd2 {[%clk 0:02:13]}  Rb8 {[%clk 0:02:50]} 11. b3 {[%clk 0:02:11]}  f4 {[%clk 0:02:41]} 12. Bxf6 {[%clk 0:02:09]}  Bxf6 {[%clk 0:02:41]} 13. d4 {[%clk 0:02:02]}  Qe7 {[%clk 0:02:18]} 14. d5 {[%clk 0:01:59]}  Bb7 {[%clk 0:02:08]} 15. O-O {[%clk 0:01:56]}  cxd5 {[%clk 0:02:05]} 16. Nxd5 {[%clk 0:01:57]}  Bxd5 {[%clk 0:02:05]} 17. Qxd5+ {[%clk 0:01:56]}  Qf7 {[%clk 0:02:05]} 18. c4 {[%clk 0:01:55]}  Rfc8 {[%clk 0:01:44]} 19. Rfd1 {[%clk 0:01:48]}  Qxd5 {[%clk 0:01:38]} 20. Rxd5 {[%clk 0:01:44]}  Be7 {[%clk 0:01:36]} 21. Rad1 {[%clk 0:01:41]}  Kf7 {[%clk 0:01:33]} 22. g3 {[%clk 0:01:30]}  g5 {[%clk 0:01:31]} 23. gxf4 {[%clk 0:01:28]}  gxf4 {[%clk 0:01:31]} 24. Kf1 {[%clk 0:01:12]}  Rg8 {[%clk 0:01:25]} 25. Ke2 {[%clk 0:01:11]}  Rg2 {[%clk 0:01:24]} 26. Rg1 {[%clk 0:01:06]}  Rxg1 {[%clk 0:01:16]} 27. Nxg1 {[%clk 0:01:07]}  c6 {[%clk 0:01:14]} 28. Ra5 {[%clk 0:01:05]}  Ra8 {[%clk 0:01:08]} 29. Nf3 {[%clk 0:01:04]}  Bd8 {[%clk 0:01:08]} 30. Ra4 {[%clk 0:01:01]}  Ke6 {[%clk 0:01:01]} 31. Rb4 {[%clk 0:00:58]}  Ra7 {[%clk 0:00:46]} 32. Rb8 {[%clk 0:00:57]}  Kd7 {[%clk 0:00:44]} 33. c5 {[%clk 0:00:51]}  Kc7 {[%clk 0:00:39]} 34. Rb4 {[%clk 0:00:47]}  dxc5 {[%clk 0:00:37]} 35. Rc4 {[%clk 0:00:48]}  Kd6 {[%clk 0:00:37]} 36. Ne1 {[%clk 0:00:44]}  Bb6 {[%clk 0:00:28]} 37. Nd3 {[%clk 0:00:43]}  a5 {[%clk 0:00:27]} 38. Nb2 {[%clk 0:00:37]}  Rg7 {[%clk 0:00:24]} 39. Kf1 {[%clk 0:00:34]}  h5 {[%clk 0:00:22]} 40. Rc3 {[%clk 0:00:23]}  Ke6 {[%clk 0:00:10]} 41. Nc4 {[%clk 0:00:22]}  Bc7 {[%clk 0:00:09]} 42. Rd3 {[%clk 0:00:21]}  Rd7 {[%clk 0:00:09]} 43. Ke2 {[%clk 0:00:18]}  Rg7 {[%clk 0:00:05]} 44. Kf1 {[%clk 0:00:14]}  Rg8 {[%clk 0:00:04]} 45. Nb2 {[%clk 0:00:08]}  Rb8 {[%clk 0:00:03]} 46. Na4 {[%clk 0:00:08]}  Rb4 {[%clk 0:00:03]} 47. Nxc5+ {[%clk 0:00:08]}  Kf6 {[%clk 0:00:04]} 48. Na6 {[%clk 0:00:06]}  Rb7 {[%clk 0:00:03]} 49. Rd7 {[%clk 0:00:07]}  Ra7 {[%clk 0:00:01]} 50. Nxc7 {[%clk 0:00:07]} 1-0


[Site "https://www.chess.com"]

[Event "Titled Tuesday Blitz November 15 Early 2022"]
[White "Gubajdullin, Alexei"]
[Black "Dudzinski, Pawel"]
[WhiteFideId "4141202"]
[BlackFideId "1117890"]
[WhiteElo "2230"]
[BlackElo "2086"]
[Result "0-1"]
[Round "07"]
[TimeControl "180+1"]
[Date "2022.11.16"]
[WhiteClock "0:00:16"]
[BlackClock "0:00:06"]

1. d4 {[%clk 0:03:00]}  d5 {[%clk 0:02:58]} 2. Nf3 {[%clk 0:02:59]}  e6 {[%clk 0:02:56]} 3. Bf4 {[%clk 0:02:59]}  f5 {[%clk 0:02:55]} 4. e3 {[%clk 0:02:59]}  c6 {[%clk 0:02:56]} 5. c4 {[%clk 0:02:58]}  Nf6 {[%clk 0:02:56]} 6. Nc3 {[%clk 0:02:57]}  Be7 {[%clk 0:02:57]} 7. Ne5 {[%clk 0:02:56]}  O-O {[%clk 0:02:57]} 8. Bd3 {[%clk 0:02:55]}  Bd7 {[%clk 0:02:57]} 9. g4 {[%clk 0:02:54]}  Ne4 {[%clk 0:02:44]} 10. gxf5 {[%clk 0:02:52]}  exf5 {[%clk 0:02:38]} 11. cxd5 {[%clk 0:02:51]}  cxd5 {[%clk 0:02:24]} 12. Qb3 {[%clk 0:02:48]}  Nxc3 {[%clk 0:02:08]} 13. bxc3 {[%clk 0:02:47]}  Bc6 {[%clk 0:02:08]} 14. Nxc6 {[%clk 0:02:34]}  Nxc6 {[%clk 0:01:15]} 15. Qxb7 {[%clk 0:02:31]}  Rc8 {[%clk 0:01:15]} 16. Qa6 {[%clk 0:02:00]}  g5 {[%clk 0:01:07]} 17. Rg1 {[%clk 0:01:57]}  Kh8 {[%clk 0:01:03]} 18. Be5+ {[%clk 0:01:36]}  Nxe5 {[%clk 0:01:04]} 19. dxe5 {[%clk 0:01:36]}  Rxc3 {[%clk 0:01:05]} 20. Ke2 {[%clk 0:01:35]}  Qb6 {[%clk 0:00:58]} 21. Qxb6 {[%clk 0:01:31]}  axb6 {[%clk 0:00:59]} 22. Rgc1 {[%clk 0:01:31]}  Rxc1 {[%clk 0:00:50]} 23. Rxc1 {[%clk 0:01:31]}  Bc5 {[%clk 0:00:51]} 24. a4 {[%clk 0:01:29]}  f4 {[%clk 0:00:43]} 25. a5 {[%clk 0:01:27]}  fxe3 {[%clk 0:00:42]} 26. fxe3 {[%clk 0:01:26]}  Re8 {[%clk 0:00:39]} 27. a6 {[%clk 0:01:23]}  Rxe5 {[%clk 0:00:37]} 28. a7 {[%clk 0:01:20]}  Rxe3+ {[%clk 0:00:34]} 29. Kd2 {[%clk 0:01:20]}  Re8 {[%clk 0:00:35]} 30. Bb5 {[%clk 0:01:17]}  Ra8 {[%clk 0:00:32]} 31. Ra1 {[%clk 0:01:16]}  Bb4+ {[%clk 0:00:33]} 32. Kd3 {[%clk 0:01:09]}  Ba5 {[%clk 0:00:34]} 33. Bc6 {[%clk 0:01:07]}  Rxa7 {[%clk 0:00:34]} 34. Bxd5 {[%clk 0:01:07]}  Kg7 {[%clk 0:00:32]} 35. Rg1 {[%clk 0:01:05]}  Kf6 {[%clk 0:00:31]} 36. Rf1+ {[%clk 0:00:58]}  Ke5 {[%clk 0:00:30]} 37. Bg8 {[%clk 0:00:57]}  Rd7+ {[%clk 0:00:28]} 38. Kc4 {[%clk 0:00:57]}  h5 {[%clk 0:00:20]} 39. h3 {[%clk 0:00:56]}  Rd4+ {[%clk 0:00:19]} 40. Kb5 {[%clk 0:00:55]}  Rb4+ {[%clk 0:00:19]} 41. Kc6 {[%clk 0:00:55]}  Rf4 {[%clk 0:00:17]} 42. Rg1 {[%clk 0:00:54]}  g4 {[%clk 0:00:16]} 43. hxg4 {[%clk 0:00:53]}  hxg4 {[%clk 0:00:17]} 44. Bb3 {[%clk 0:00:50]}  Kf5 {[%clk 0:00:14]} 45. Kd6 {[%clk 0:00:39]}  Rb4 {[%clk 0:00:13]} 46. Be6+ {[%clk 0:00:38]}  Kg5 {[%clk 0:00:12]} 47. Ke5 {[%clk 0:00:37]}  b5 {[%clk 0:00:10]} 48. Rf1 {[%clk 0:00:34]}  Bc7+ {[%clk 0:00:09]} 49. Kd5 {[%clk 0:00:33]}  g3 {[%clk 0:00:09]} 50. Kc5 {[%clk 0:00:31]}  Rb2 {[%clk 0:00:08]} 51. Rf5+ {[%clk 0:00:30]}  Kg6 {[%clk 0:00:07]} 52. Rf8 {[%clk 0:00:30]}  Be5 {[%clk 0:00:07]} 53. Rg8+ {[%clk 0:00:28]}  Kf6 {[%clk 0:00:06]} 54. Bd5 {[%clk 0:00:27]}  b4 {[%clk 0:00:06]} 55. Kc4 {[%clk 0:00:26]}  Bc3 {[%clk 0:00:05]} 56. Kd3 {[%clk 0:00:23]}  Be5 {[%clk 0:00:04]} 57. Kc4 {[%clk 0:00:23]}  Rb1 {[%clk 0:00:02]} 58. Kd3 {[%clk 0:00:22]}  b3 {[%clk 0:00:03]} 59. Kc4 {[%clk 0:00:20]}  b2 {[%clk 0:00:03]} 60. Be4 {[%clk 0:00:19]}  Rc1+ {[%clk 0:00:04]} 61. Kd5 {[%clk 0:00:20]}  b1=Q {[%clk 0:00:05]} 62. Bxb1 {[%clk 0:00:19]}  Rxb1 {[%clk 0:00:06]} 63. Rf8+ {[%clk 0:00:19]}  Ke7 {[%clk 0:00:05]} 64. Rg8 {[%clk 0:00:18]}  Bb8 {[%clk 0:00:06]} 65. Ke4 {[%clk 0:00:17]}  Kf7 {[%clk 0:00:06]} 66. Rg4 {[%clk 0:00:17]}  Rb4+ {[%clk 0:00:05]} 67. Kf3 {[%clk 0:00:16]}  Rxg4 {[%clk 0:00:06]} 0-1


[Site "https://www.chess.com"]

[Event "Titled Tuesday Blitz November 15 Early 2022"]
[White "Hadzovic, Amir"]
[Black "Fernandez De La Vara, Arnaldo"]
[WhiteFideId "14402300"]
[BlackFideId "3518388"]
[WhiteElo "2262"]
[BlackElo "2387"]
[Result "1-0"]
[Round "07"]
[TimeControl "180+1"]
[Date "2022.11.16"]
[WhiteClock "0:00:16"]
[BlackClock "0:00:02"]

1. e4 {[%clk 0:02:58]}  c5 {[%clk 0:03:00]} 2. Nc3 {[%clk 0:02:56]}  a6 {[%clk 0:02:59]} 3. a3 {[%clk 0:02:57]}  Nc6 {[%clk 0:02:59]} 4. Bc4 {[%clk 0:02:57]}  e6 {[%clk 0:02:58]} 5. d3 {[%clk 0:02:57]}  Nf6 {[%clk 0:02:59]} 6. Ba2 {[%clk 0:02:55]}  d5 {[%clk 0:02:56]} 7. exd5 {[%clk 0:02:48]}  Nxd5 {[%clk 0:02:55]} 8. Ne4 {[%clk 0:02:21]}  Be7 {[%clk 0:02:47]} 9. Nf3 {[%clk 0:02:21]}  O-O {[%clk 0:02:47]} 10. O-O {[%clk 0:02:21]}  b6 {[%clk 0:02:43]} 11. c3 {[%clk 0:02:13]}  Bb7 {[%clk 0:02:42]} 12. Qe2 {[%clk 0:02:13]}  Qc7 {[%clk 0:02:40]} 13. Re1 {[%clk 0:02:10]}  Rad8 {[%clk 0:02:40]} 14. Bg5 {[%clk 0:02:05]}  Rfe8 {[%clk 0:02:38]} 15. Rad1 {[%clk 0:02:04]}  h6 {[%clk 0:02:35]} 16. Bc1 {[%clk 0:01:56]}  Bf8 {[%clk 0:02:22]} 17. Qc2 {[%clk 0:01:51]}  e5 {[%clk 0:02:15]} 18. Bxd5 {[%clk 0:01:40]}  Rxd5 {[%clk 0:02:14]} 19. Bxh6 {[%clk 0:01:41]}  f5 {[%clk 0:02:04]} 20. Ng3 {[%clk 0:01:30]}  gxh6 {[%clk 0:01:49]} 21. Nxf5 {[%clk 0:01:30]}  Qh7 {[%clk 0:01:42]} 22. d4 {[%clk 0:01:22]}  cxd4 {[%clk 0:01:00]} 23. cxd4 {[%clk 0:01:20]}  Rdd8 {[%clk 0:00:54]} 24. dxe5 {[%clk 0:00:59]}  Rxd1 {[%clk 0:00:43]} 25. Rxd1 {[%clk 0:01:00]}  Nxe5 {[%clk 0:00:42]} 26. N3h4 {[%clk 0:00:51]}  Nf7 {[%clk 0:00:26]} 27. Qc4 {[%clk 0:00:45]}  b5 {[%clk 0:00:16]} 28. Qg4+ {[%clk 0:00:29]}  Ng5 {[%clk 0:00:15]} 29. f4 {[%clk 0:00:28]}  Bc5+ {[%clk 0:00:15]} 30. Kh1 {[%clk 0:00:28]}  Re4 {[%clk 0:00:09]} 31. Rd8+ {[%clk 0:00:22]}  Bf8 {[%clk 0:00:09]} 32. h3 {[%clk 0:00:17]}  Qc7 {[%clk 0:00:02]} 33. Rd4 {[%clk 0:00:15]}  Rxd4 {[%clk 0:00:02]} 34. Nxd4 {[%clk 0:00:16]} 1-0


[Site "https://www.chess.com"]

[Event "Titled Tuesday Blitz November 15 Early 2022"]
[White "Hajiyev, Kanan"]
[Black "Leiva, Gianmarco"]
[WhiteFideId "13404148"]
[BlackFideId "3804399"]
[WhiteElo "2118"]
[BlackElo "2286"]
[Result "0-1"]
[Round "07"]
[TimeControl "180+1"]
[Date "2022.11.16"]
[WhiteClock "0:00:05"]
[BlackClock "0:00:09"]

1. d4 {[%clk 0:03:00]}  Nf6 {[%clk 0:02:37]} 2. Nf3 {[%clk 0:02:58]}  g6 {[%clk 0:02:33]} 3. c4 {[%clk 0:02:58]}  Bg7 {[%clk 0:02:34]} 4. g3 {[%clk 0:02:59]}  O-O {[%clk 0:02:33]} 5. Bg2 {[%clk 0:03:00]}  d5 {[%clk 0:02:32]} 6. O-O {[%clk 0:03:00]}  dxc4 {[%clk 0:02:32]} 7. Na3 {[%clk 0:03:01]}  c5 {[%clk 0:02:30]} 8. Nxc4 {[%clk 0:03:00]}  Na6 {[%clk 0:02:27]} 9. e3 {[%clk 0:02:29]}  Be6 {[%clk 0:02:24]} 10. b3 {[%clk 0:02:28]}  Rc8 {[%clk 0:02:18]} 11. Qe2 {[%clk 0:02:08]}  cxd4 {[%clk 0:02:15]} 12. Nxd4 {[%clk 0:02:04]}  Bxc4 {[%clk 0:02:15]} 13. bxc4 {[%clk 0:02:04]}  Nc5 {[%clk 0:02:16]} 14. Rb1 {[%clk 0:01:57]}  Nfd7 {[%clk 0:02:12]} 15. Rd1 {[%clk 0:01:50]}  Qc7 {[%clk 0:02:07]} 16. Bb2 {[%clk 0:01:41]}  a6 {[%clk 0:01:59]} 17. h4 {[%clk 0:01:36]}  Nf6 {[%clk 0:01:27]} 18. Ba1 {[%clk 0:01:26]}  Nfe4 {[%clk 0:01:24]} 19. Qg4 {[%clk 0:01:08]}  Nd6 {[%clk 0:00:55]} 20. Qe2 {[%clk 0:00:57]}  Rfd8 {[%clk 0:00:30]} 21. Rbc1 {[%clk 0:00:54]}  e6 {[%clk 0:00:24]} 22. h5 {[%clk 0:00:53]}  Qe7 {[%clk 0:00:18]} 23. Nb3 {[%clk 0:00:32]}  Qg5 {[%clk 0:00:10]} 24. Bxg7 {[%clk 0:00:30]}  Kxg7 {[%clk 0:00:11]} 25. hxg6 {[%clk 0:00:28]}  hxg6 {[%clk 0:00:11]} 26. Qb2+ {[%clk 0:00:26]}  Qf6 {[%clk 0:00:11]} 27. Qxf6+ {[%clk 0:00:25]}  Kxf6 {[%clk 0:00:12]} 28. Nxc5 {[%clk 0:00:23]}  Rxc5 {[%clk 0:00:12]} 29. e4 {[%clk 0:00:22]}  Ke7 {[%clk 0:00:10]} 30. e5 {[%clk 0:00:20]}  Nxc4 {[%clk 0:00:09]} 31. Rxd8 {[%clk 0:00:20]}  Kxd8 {[%clk 0:00:10]} 32. Bxb7 {[%clk 0:00:20]}  Rc7 {[%clk 0:00:02]} 33. Bxa6 {[%clk 0:00:20]}  Nxe5 {[%clk 0:00:03]} 34. Rd1+ {[%clk 0:00:18]}  Ke7 {[%clk 0:00:03]} 35. Kg2 {[%clk 0:00:16]}  Rc2 {[%clk 0:00:03]} 36. a4 {[%clk 0:00:16]}  Ra2 {[%clk 0:00:03]} 37. Bb5 {[%clk 0:00:15]}  g5 {[%clk 0:00:03]} 38. Re1 {[%clk 0:00:13]}  Kd6 {[%clk 0:00:03]} 39. Re2 {[%clk 0:00:13]}  Ra1 {[%clk 0:00:03]} 40. Rd2+ {[%clk 0:00:13]}  Ke7 {[%clk 0:00:03]} 41. f4 {[%clk 0:00:14]}  gxf4 {[%clk 0:00:03]} 42. gxf4 {[%clk 0:00:15]}  Ng4 {[%clk 0:00:02]} 43. Rd7+ {[%clk 0:00:15]}  Kf6 {[%clk 0:00:03]} 44. Rd2 {[%clk 0:00:15]}  Ra3 {[%clk 0:00:03]} 45. Re2 {[%clk 0:00:14]}  Kf5 {[%clk 0:00:03]} 46. Be8 {[%clk 0:00:13]}  f6 {[%clk 0:00:02]} 47. Bd7 {[%clk 0:00:12]}  Ne3+ {[%clk 0:00:02]} 48. Kf2 {[%clk 0:00:10]}  Kxf4 {[%clk 0:00:03]} 49. Bxe6 {[%clk 0:00:09]}  Nd1+ {[%clk 0:00:02]} 50. Ke1 {[%clk 0:00:09]}  Nc3 {[%clk 0:00:02]} 51. Rf2+ {[%clk 0:00:08]}  Ke3 {[%clk 0:00:03]} 52. Kf1 {[%clk 0:00:03]}  Ne4 {[%clk 0:00:03]} 53. Re2+ {[%clk 0:00:03]}  Kf3 {[%clk 0:00:03]} 54. Bd5 {[%clk 0:00:02]}  Ra1+ {[%clk 0:00:03]} 55. Re1 {[%clk 0:00:03]}  Rxa4 {[%clk 0:00:02]} 56. Rxe4 {[%clk 0:00:02]}  Rxe4 {[%clk 0:00:02]} 57. Kg1 {[%clk 0:00:02]}  Kf4 {[%clk 0:00:02]} 58. Bxe4 {[%clk 0:00:01]}  Kxe4 {[%clk 0:00:03]} 59. Kf1 {[%clk 0:00:01]}  Kf3 {[%clk 0:00:04]} 60. Ke1 {[%clk 0:00:02]}  Kg2 {[%clk 0:00:04]} 61. Ke2 {[%clk 0:00:02]}  f5 {[%clk 0:00:05]} 62. Ke3 {[%clk 0:00:03]}  Kg3 {[%clk 0:00:06]} 63. Ke2 {[%clk 0:00:03]}  f4 {[%clk 0:00:06]} 64. Kf1 {[%clk 0:00:04]}  Kf3 {[%clk 0:00:07]} 65. Ke1 {[%clk 0:00:04]}  Kg2 {[%clk 0:00:08]} 66. Ke2 {[%clk 0:00:05]}  f3+ {[%clk 0:00:09]} 67. Ke3 {[%clk 0:00:05]}  f2 {[%clk 0:00:09]} 0-1


[Site "https://www.chess.com"]